bitfinex-derivatives/quotes_ETHF0:USTF0_20250602
["timestamp","ask_amount","ask_price","bid_price","bid_amount"]
[1748833327769,0.7968,2509.1,2508.8,4.4744]
[1748833327770,1.374,2509.1,2508.8,3.7866]
[1748833327968,0.79684,2508.9,2508.8,0.5788]
[1748833328878,7.08744,2508.9,2508.8,0.5788]
[1748833329180,0.7969,2508.7,2508.6,0.00597241]
[1748833329368,22.3777,2508.7,2508.6,0.00597241]
[1748833329570,3.2078,2509.0,2508.6,0.80288241]
[1748833329776,0.7969,2508.7,2508.6,3.97897241]
[1748833329973,1.2906,2508.9,2508.6,3.97897241]
[1748833330173,1.2906,2508.9,2508.6,4.77589241]
[1748833330373,2.08745,2508.9,2508.7,1.2671]
[1748833330575,0.79687,2508.8,2508.7,1.2671]
[1748833330774,0.79687,2508.8,2508.7,1.7671]
[1748833331075,0.79687,2508.8,2508.7,0.5]
[1748833331978,2.08745,2508.9,2508.7,0.5]
[1748833332175,0.79687,2508.8,2508.7,0.5]
[1748833332482,2.13257,2508.8,2508.7,0.5]
[1748833332680,2.82477,2508.8,2508.7,0.5]
[1748833333474,2.0279,2508.8,2508.7,0.5]
[1748833333678,21.21677,2508.8,2508.7,0.5]
[1748833333877,19.18887,2508.8,2508.7,0.5]
[1748833335976,24.18887,2508.8,2508.7,0.5]
[1748833340377,0.79712,2508.0,2507.9,3.975]
[1748833340682,3.975,2508.0,2506.7,7.1828]
[1748833340987,0.79731,2507.4,2507.3,2.7187]
[1748833341188,0.7973,2507.5,2507.3,2.7187]
[1748833341490,3.2078,2507.6,2507.3,3.51603]
[1748833341791,3.2078,2507.6,2507.3,2.7187]
[1748833342083,3.2078,2507.6,2507.5,0.79728]
[1748833342283,3.2078,2507.6,2507.4,0.7973]
[1748833342485,3.2078,2507.6,2507.5,2.15958]
[1748833342784,0.00597241,2507.7,2507.6,0.79725]
[1748833342985,0.00597241,2507.7,2507.6,9.77225]
[1748833343385,0.00597241,2507.7,2507.6,50.57225]
[1748833343586,0.00597241,2507.7,2507.6,46.59725]
[1748833343785,0.00597241,2507.7,2507.6,50.57225]
[1748833345189,0.1993,2508.0,2507.9,0.79715]
[1748833345381,0.1993,2508.0,2507.9,4.00495]
[1748833347486,0.1993,2508.0,2507.9,8.04395]
[1748833348689,0.00597241,2508.2,2508.1,0.79709]
[1748833349282,0.00597241,2508.2,2508.1,41.59709]
[1748833349685,0.00597241,2508.2,2508.1,46.59709]
[1748833351381,21.6858,2508.9,2508.6,0.79692]
[1748833351691,0.79689,2508.8,2508.7,1.2631]
[1748833351997,3.2078,2508.9,2508.8,0.79687]
[1748833352288,3.2078,2508.9,2508.7,1.896]
[1748833352487,3.2078,2508.9,2508.8,0.79687]
[1748833352791,4.00464,2508.9,2508.8,1.3616]
[1748833353392,3.2078,2508.9,2508.8,2.15847]
[1748833353692,4.00464,2508.9,2508.8,1.3616]
[1748833353993,4.00464,2508.9,2508.8,5.4006]
[1748833354188,3.2078,2508.9,2508.8,6.19747]
[1748833354593,4.00464,2508.9,2508.8,5.4006]
[1748833354987,3.2078,2508.9,2508.8,6.19747]
[1748833355288,0.00597241,2509.1,2508.8,5.4006]
[1748833355489,0.79684,2508.9,2508.8,5.4006]
[1748833355790,0.7969,2508.7,2508.6,0.00597241]
[1748833356493,20.362234,2508.9,2508.7,0.7969]
[1748833356794,1.081374,2508.9,2508.8,2.12367]
[1748833357095,0.7969,2508.7,2508.6,0.00597241]
[1748833357488,2.16281341,2508.9,2508.6,1.33277241]
[1748833357692,0.79688,2508.8,2508.6,2.12970241]
[1748833357991,0.79688,2508.8,2508.7,1.3268]
[1748833358388,0.79687,2508.8,2508.7,1.3268]
[1748833362391,0.79685,2508.9,2508.7,1.3268]
[1748833362691,0.79683,2509.0,2508.8,0.79686]
[1748833362996,18.48997241,2509.1,2508.9,1.2986]
[1748833363189,1.87711061,2509.0,2508.9,1.2986]
[1748833364596,0.7968,2509.0,2508.9,1.2986]
[1748833365695,0.79684,2508.9,2508.8,0.6534]
[1748833365991,0.79687,2508.8,2508.7,0.5]
[1748833366192,4.71497384,2508.8,2508.7,0.5]
[1748833366397,9.71497384,2508.8,2508.7,0.5]
[1748833366999,9.71499204,2508.8,2508.7,0.5]
[1748833367192,10.91033035,2508.8,2508.0,6.0721]
[1748833367398,0.79712,2508.0,2507.9,3.2078]
[1748833367593,0.79724,2507.7,2507.6,3.2078]
[1748833367791,0.79724,2507.7,2507.6,7.2468]
[1748833368194,0.79724,2507.7,2507.6,4.039]
[1748833369998,0.7972,2507.8,2507.6,4.039]
[1748833370199,0.79722,2507.7,2507.6,4.039]
[1748833370802,1.2847,2507.8,2507.6,4.039]
[1748833371199,0.674,2508.2,2507.7,0.7972]
[1748833371410,0.7971,2508.1,2507.7,1.9524]
[1748833371610,1.3785,2508.1,2507.8,1.309]
[1748833371804,0.79714,2508.0,2507.8,1.309]
[1748833372004,0.79714,2508.0,2507.8,1.809]
[1748833372310,1.3785,2508.1,2507.8,1.809]
[1748833372510,0.79712,2508.0,2507.8,1.809]
[1748833372710,0.79715,2507.9,2507.8,1.809]
[1748833373111,0.79715,2507.9,2507.8,0.5]
[1748833374011,0.79173368,2507.9,2507.8,0.5]
[1748833374210,2.16933368,2507.9,2507.8,0.5]
[1748833374911,20.67533368,2507.9,2507.8,0.5]
[1748833379511,2.16933368,2507.9,2507.8,0.5]
[1748833379714,20.66233368,2507.9,2507.8,0.5]
[1748833382315,26.74022113,2507.9,2507.8,0.5]
[1748833382614,0.79728,2507.5,2507.4,0.00597241]
[1748833384018,18.496,2507.5,2507.4,0.80327241]
[1748833384214,0.00597241,2507.7,2507.4,4.04597241]
[1748833384514,18.50197241,2507.7,2507.5,2.11798]
[1748833384715,0.00597241,2507.7,2507.5,2.11798]
[1748833385012,0.00597241,2507.7,2507.6,0.79725]
[1748833385517,0.00597241,2507.7,2507.5,1.8207]
[1748833385816,0.00597241,2507.7,2507.6,0.79725]
[1748833386821,0.00597241,2507.7,2507.6,9.00505]
[1748833387211,0.00597241,2507.7,2507.6,8.2078]
[1748833387516,0.80319241,2507.7,2507.6,8.2078]
[1748833387720,0.79725,2507.6,2507.5,1.8207]
[1748833388021,0.79725,2507.6,2507.5,5.8607]
[1748833388816,0.00597241,2507.7,2507.5,5.8607]
[1748833389021,0.00597241,2507.7,2507.5,6.65796]
[1748833389226,0.80319241,2507.7,2507.5,6.65796]
[1748833389519,0.00597241,2507.7,2507.5,6.65796]
[1748833389718,0.80319241,2507.7,2507.5,6.65796]
[1748833391013,0.79725,2507.6,2507.5,5.8607]
[1748833391617,0.79725,2507.6,2507.5,0.5]
[1748833392020,0.79725,2507.6,2507.5,4.54]
[1748833392327,0.79725,2507.6,2507.5,5.8412]
[1748833392510,0.79725,2507.6,2507.5,0.5]
[1748833392824,2.15665,2507.6,2507.5,0.5]
[1748833393317,0.80321241,2507.7,2507.5,1.29726]
[1748833393511,0.00597241,2507.7,2507.6,2.09845]
[1748833395611,0.00597241,2507.7,2507.6,2.59845]
[1748833395825,0.00597241,2507.7,2507.6,10.80625]
[1748833396219,0.00597241,2507.7,2507.6,5.80625]
[1748833396423,0.00597241,2507.7,2507.6,9.84625]
[1748833397424,0.00597241,2507.7,2507.6,5.80625]
[1748833397623,0.00597241,2507.7,2507.6,9.049]
[1748833397828,0.00597241,2507.7,2507.6,9.84625]
[1748833399621,0.00597241,2507.7,2507.6,14.84625]
[1748833399812,6.0321,2509.0,2507.6,14.84625]
[1748833399813,3.2078,2508.6,2508.1,0.79707]
[1748833400019,0.79703,2508.3,2508.2,6.6872]
[1748833400218,1.87954152,2508.3,2508.2,6.6872]
[1748833400418,0.79703,2508.3,2508.2,6.6872]
[1748833400818,0.79703,2508.3,2508.2,4.7325]
[1748833401025,0.79717,2507.9,2507.7,5.92301]
[1748833401224,0.79715,2507.9,2507.8,4.04]
[1748833401923,21.2133,2508.2,2507.7,45.9258]
[1748833402223,0.79717,2507.9,2507.7,9.1658]
[1748833402819,0.79718,2507.8,2507.7,3.2078]
[1748833404622,0.79718,2507.8,2507.6,0.5]
[1748833405418,0.79722,2507.7,2507.6,0.5]
[1748833406628,0.7972,2507.8,2507.6,0.5]
[1748833406821,0.7972,2507.8,2507.6,1.8635]
[1748833407022,0.79717,2507.9,2507.6,2.66074]
[1748833407222,0.79717,2507.9,2507.7,0.79722]
[1748833407426,0.79717,2507.9,2507.6,2.66073]
[1748833407719,0.79719,2507.8,2507.6,2.16073]
[1748833408023,0.79719,2507.8,2507.6,2.66073]
[1748833408223,0.79719,2507.8,2507.6,1.8635]
[1748833409630,0.79722,2507.7,2507.6,1.8635]
[1748833410128,0.79722,2507.7,2507.6,0.5]
[1748833410129,1.87880615,2507.7,2507.6,0.5]
[1748833410318,3.18330615,2507.7,2507.6,0.5]
[1748833410829,3.1833379,2507.7,2507.6,0.5]
[1748833415336,1.87888153,2507.7,2507.6,0.5]
[1748833415634,1.08166153,2507.7,2507.6,0.5]
[1748833415829,1.08166153,2507.7,2507.6,1.29725]
[1748833416034,1.08166153,2507.7,2507.6,0.5]
[1748833416235,1.87888153,2507.7,2507.6,0.5]
[1748833416435,1.87888153,2507.7,2507.6,4.558]
[1748833417136,1.08166153,2507.7,2507.6,4.558]
[1748833417336,0.79717,2507.9,2507.7,0.79721]
[1748833417529,0.79717,2507.9,2507.8,1.3768]
[1748833417932,0.79715,2508.0,2507.8,1.3768]
[1748833418132,0.79715,2508.0,2507.9,0.6958]
[1748833418333,1.87890377,2508.0,2507.9,0.6958]
[1748833418537,1.8788888,2508.0,2507.9,0.6958]
[1748833419437,1.87890743,2508.0,2507.9,0.6958]
[1748833420535,0.79715,2507.9,2507.8,1.3768]
[1748833420736,0.79715,2507.9,2507.8,4.058]
[1748833421537,0.79722,2507.7,2507.6,0.5]
[1748833421742,0.79722,2507.7,2507.6,4.558]
[1748833421943,2.05521,2507.8,2507.6,4.558]
[1748833422144,2.05521,2507.8,2507.6,5.2306]
[1748833422344,0.79721,2507.8,2507.6,5.2306]
[1748833422640,0.79721,2507.8,2507.6,5.52783]
[1748833422837,0.79721,2507.8,2507.7,1.3497]
[1748833426745,0.79721,2507.8,2507.6,6.02785]
[1748833426746,0.79722,2507.7,2507.6,5.2306]
[1748833427633,0.6526,2507.9,2507.7,0.79722]
[1748833427841,0.7972,2507.8,2507.6,6.02783]
[1748833428044,0.7972,2507.8,2507.7,1.2829]
[1748833430642,0.79718,2507.8,2507.7,1.2829]
[1748833431049,0.79722,2507.7,2507.6,0.5]
[1748833431248,6.98439031,2507.7,2507.6,0.5]
[1748833432348,0.79728,2507.5,2507.4,2.41e-06]
[1748833432547,20.03629706,2507.5,2506.9,3.2078]
[1748833432850,0.1994,2507.5,2507.3,0.79734]
[1748833433049,0.1994,2507.5,2507.4,2.0442]
[1748833433050,0.99668,2507.5,2507.4,2.0442]
[1748833433245,0.1994,2507.5,2507.4,2.0442]
[1748833433546,0.99668,2507.5,2507.4,0.6566]
[1748833434151,0.99668,2507.5,2507.4,1.1566]
[1748833435950,0.99668,2507.5,2507.4,6.5511]
[1748833437555,0.1994,2507.5,2507.4,6.5511]
[1748833438253,0.1994,2507.5,2507.4,6.5611]
[1748833439363,0.99668,2507.5,2507.4,6.5611]
[1748833440855,0.1994,2507.5,2507.4,6.5611]
[1748833441156,0.1994,2507.5,2507.4,7.35841]
[1748833442052,0.1994,2507.5,2507.4,6.5611]
[1748833442359,0.1994,2507.5,2507.4,7.35841]
[1748833444156,0.1994,2507.5,2507.4,6.5611]
[1748833444357,0.1994,2507.5,2507.4,7.35841]
[1748833450365,0.1994,2507.5,2507.4,0.5]
[1748833450366,0.99668,2507.5,2507.4,0.5]
[1748833451164,2.08001955,2507.5,2507.4,0.5]
[1748833451564,3.46141955,2507.5,2507.4,0.5]
[1748833451865,0.79744,2507.0,2506.9,2.1939]
[1748833452064,3.2078,2507.4,2506.9,2.99137]
[1748833452369,1.08264943,2507.3,2507.2,0.79738]
[1748833452565,3.2078,2507.4,2507.2,4.068]
[1748833452768,0.79734,2507.3,2507.2,4.068]
[1748833453564,2.16164,2507.3,2507.2,4.068]
[1748833453770,0.79738,2507.2,2507.1,1.2726]
[1748833453966,2.16166,2507.3,2507.1,5.3406]
[1748833454267,2.16166,2507.3,2507.1,5.8406]
[1748833454462,0.79738,2507.2,2507.1,5.8406]
[1748833454670,2.16166,2507.3,2507.1,5.8406]
[1748833455075,3.2078,2507.4,2507.3,0.79734]
[1748833455365,4.00511,2507.4,2507.1,5.8406]
[1748833455568,0.79736,2507.3,2507.1,4.568]
[1748833455762,0.79736,2507.3,2507.1,6.74259]
[1748833455964,0.79736,2507.3,2507.2,1.3772]
[1748833456570,0.79736,2507.3,2507.1,0.5]
[1748833456872,0.79738,2507.2,2507.1,4.568]
[1748833457476,0.99678,2507.2,2507.1,4.568]
[1748833458372,0.99678,2507.2,2507.1,0.5]
[1748833458873,2.07968496,2507.2,2507.1,0.5]
[1748833459174,4.02018496,2507.2,2507.1,0.5]
[1748833460073,9.02018496,2507.2,2507.1,0.5]
[1748833461175,4.02018496,2507.2,2507.1,0.5]
[1748833461375,2.07968496,2507.2,2507.1,0.5]
[1748833461568,2.07968496,2507.2,2507.1,1.8448]
[1748833461776,2.07973357,2507.2,2507.1,0.5]
[1748833463480,0.99678,2507.2,2507.1,1.8448]
[1748833463975,0.99678,2507.2,2507.1,0.5]
[1748833464373,2.37528,2507.2,2507.1,0.5]
[1748833466078,7.37528,2507.2,2507.1,0.5]
[1748833466278,8.02478,2507.2,2507.1,0.5]
[1748833466480,4.10747891,2507.2,2507.1,0.5]
[1748833467075,8.31009891,2507.2,2506.5,1.31820035]
[1748833467383,3.2078,2506.9,2506.5,1.31820035]
[1748833467680,0.79756,2506.7,2506.5,42.11820035]
[1748833467876,3.2078,2506.9,2506.5,42.11820035]
[1748833468284,3.2078,2506.9,2506.7,0.79753]
[1748833468682,3.2078,2506.9,2506.8,0.7975]
[1748833469081,3.2078,2506.9,2506.7,2.459]
[1748833469382,3.2078,2506.9,2506.8,2.091]
[1748833469782,3.2078,2506.9,2506.8,6.133]
[1748833469984,3.2078,2506.9,2506.8,5.3355]
[1748833470286,4.00527,2506.9,2506.8,5.3355]
[1748833470886,0.79747,2506.9,2506.8,5.3355]
[1748833471183,0.79746,2507.0,2506.8,5.3355]
[1748833471379,3.4072,2507.2,2506.9,0.79745]
[1748833471685,18.497,2507.1,2507.0,1.9213]
[1748833471887,19.29441,2507.1,2507.0,1.9213]
[1748833472280,18.497,2507.1,2507.0,2.71874]
[1748833472684,19.29441,2507.1,2507.0,1.9213]
[1748833473479,1.88073415,2507.1,2507.0,0.6474]
[1748833473881,0.79741,2507.1,2507.0,0.6474]
[1748833474185,2.08031971,2507.1,2507.0,0.6474]
[1748833474786,0.79746,2507.0,2506.8,5.4274]
[1748833474989,0.79744,2507.0,2506.8,6.1001]
[1748833475287,0.99682,2507.1,2506.9,0.79745]
[1748833475587,0.99682,2507.1,2507.0,1.3854]
[1748833477283,2.08136794,2507.1,2507.0,1.3854]
[1748833477783,0.1994,2507.1,2507.0,1.3854]
[1748833478087,2.08140552,2507.1,2507.0,1.3854]
[1748833479391,3.16671545,2507.1,2507.0,1.3854]
[1748833479593,0.79747,2506.9,2506.8,4.7147]
[1748833480790,0.79747,2506.9,2506.8,0.6727]
[1748833481184,0.79747,2506.9,2506.8,2.0127]
[1748833482881,0.79747,2506.9,2506.8,2.5127]
[1748833483183,0.79757,2506.6,2506.5,0.01960035]
[1748833483386,18.494,2506.6,2506.5,0.01960035]
[1748833483590,1.08693601,2506.6,2506.5,0.01960035]
[1748833484088,1.08693601,2506.6,2506.5,4.06160035]
[1748833484392,1.08693601,2506.6,2506.5,6.18990035]
[1748833484593,1.08693601,2506.6,2506.5,6.06150035]
[1748833484784,18.5,2506.7,2506.5,7.35907035]
[1748833485287,18.5,2506.7,2506.5,6.56150035]
[1748833485590,18.5,2506.7,2506.6,0.79757]
[1748833486389,0.79746,2507.0,2506.7,0.79753]
[1748833486586,1.88416539,2506.9,2506.8,1.2817]
[1748833487688,1.08669539,2506.9,2506.5,4.39660035]
[1748833487889,0.79753,2506.7,2506.6,4.042]
[1748833488083,0.79757,2506.6,2506.5,9.72030035]
[1748833488386,0.79755,2506.7,2506.5,9.72030035]
[1748833488793,0.79757,2506.6,2506.5,9.72030035]
[1748833488986,0.99697,2506.6,2506.5,9.72030035]
[1748833489186,0.1994,2506.6,2506.5,9.72030035]
[1748833489785,1.28621751,2506.6,2506.5,9.72030035]
[1748833490296,0.1994,2506.6,2506.5,10.51790035]
[1748833491799,0.1994,2506.6,2506.5,9.72030035]
[1748833492299,0.1994,2506.6,2506.5,10.51790035]
[1748833494092,0.1994,2506.6,2506.5,6.47590035]
[1748833494297,0.1994,2506.6,2506.5,10.51790035]
[1748833496699,0.1994,2506.6,2506.5,6.47590035]
[1748833496901,0.1994,2506.6,2506.5,10.51790035]
[1748833497209,0.1994,2506.6,2506.5,9.72030035]
[1748833497507,0.1994,2506.6,2506.5,10.01790035]
[1748833497808,0.1994,2506.6,2506.5,10.51790035]
[1748833499007,0.99697,2506.6,2506.5,4.39660035]
[1748833499311,0.99697,2506.6,2506.5,7.75540035]
[1748833499806,0.99697,2506.6,2506.5,0.51960035]
[1748833500009,0.1994,2506.6,2506.5,0.51960035]
[1748833500208,1.28663602,2506.6,2506.5,6.45760035]
[1748833500406,0.1994,2506.6,2506.5,9.19780035]
[1748833500601,0.1994,2506.6,2506.5,8.40020035]
[1748833500806,0.99697,2506.6,2506.5,4.37220035]
[1748833501012,2.37787,2506.6,2506.5,3.72740035]
[1748833501207,2.37787,2506.6,2506.5,0.51960035]
[1748833501510,3.67672938,2506.6,2506.5,0.51960035]
[1748833501812,3.67673526,2506.6,2506.5,0.51960035]
[1748833502007,22.17073526,2506.6,2506.5,0.51960035]
[1748833502613,22.17073706,2506.6,2506.5,0.51960035]
[1748833502906,21.95885976,2506.6,2506.5,0.51960035]
[1748833503811,20.57795976,2506.6,2506.5,0.51960035]
[1748833504012,20.57758945,2506.6,2506.5,0.51960035]
[1748833504414,21.90758945,2506.6,2506.5,0.51960035]
[1748833505216,2.61601945,2506.6,2506.5,1.31720035]
[1748833505412,0.1994,2506.6,2506.5,4.52500035]
[1748833505611,0.1994,2506.6,2506.5,5.87110035]
[1748833507206,0.1994,2506.6,2506.5,2.66330035]
[1748833507412,0.1994,2506.6,2506.5,5.87110035]
[1748833507812,0.1994,2506.6,2506.5,6.69230035]
[1748833508919,0.1994,2506.6,2506.5,2.66330035]
[1748833509112,0.1994,2506.6,2506.5,6.69130035]
[1748833509312,0.1994,2506.6,2506.5,5.89370035]
[1748833509615,0.1994,2506.6,2506.5,6.69130035]
[1748833511521,0.1994,2506.6,2506.5,9.89910035]
[1748833512518,0.1994,2506.6,2506.5,9.39910035]
[1748833512922,0.1994,2506.6,2506.5,9.89910035]
[1748833513216,0.1994,2506.6,2506.5,5.87110035]
[1748833513416,0.1994,2506.6,2506.5,9.89910035]
[1748833514023,0.1994,2506.6,2506.5,5.87110035]
[1748833514317,0.99697,2506.6,2506.5,0.51960035]
[1748833514513,5.50997,2506.6,2506.5,0.51960035]
[1748833514718,11.59731304,2506.6,2506.5,0.51960035]
[1748833514918,11.80921396,2506.6,2506.5,0.51960035]
[1748833515613,11.80918792,2506.6,2506.5,0.51960035]
[1748833516117,1.994,2506.5,2505.3,6.16257373]
[1748833516316,0.7978,2505.9,2505.5,0.7979]
[1748833516720,0.6953,2505.9,2505.5,7.2358]
[1748833516915,0.6953,2505.9,2505.6,2.19166]
[1748833517117,0.79782,2505.8,2505.7,1.3938]
[1748833517319,0.79782,2505.8,2505.7,4.028]
[1748833517619,0.79782,2505.8,2505.5,7.24178444]
[1748833517819,0.79786,2505.7,2505.5,7.24178444]
[1748833518011,1.2793,2505.8,2505.5,7.24178444]
[1748833518012,0.79788,2505.6,2505.5,7.24178444]
[1748833518216,0.79784,2505.8,2505.5,3.71378444]
[1748833518418,1.4931,2505.9,2505.6,1.1943]
[1748833518720,0.79783,2505.8,2505.6,1.1943]
[1748833519729,21.77978444,2506.0,2505.6,1.1943]
[1748833519917,4.01155444,2506.0,2505.6,1.1943]
[1748833520222,0.79785,2505.7,2505.6,1.1943]
[1748833520520,0.79784,2505.8,2505.6,4.029]
[1748833520917,2.791,2505.9,2505.6,4.82688]
[1748833521225,1.4764,2505.9,2505.6,4.82688]
[1748833521724,0.79782,2505.8,2505.6,5.3689]
[1748833522219,0.79788,2505.6,2505.5,3.71378444]
[1748833522421,0.79788,2505.6,2505.5,7.74278444]
[1748833522816,0.79788,2505.6,2505.5,3.71378444]
[1748833524720,0.79787,2505.7,2505.5,3.71378444]
[1748833525417,18.558,2505.6,2505.5,3.71378444]
[1748833525725,2.79101,2505.9,2505.6,0.79788]
[1748833525923,2.79101,2505.9,2505.8,3.2078]
[1748833526125,0.00598444,2506.0,2505.8,3.2078]
[1748833526324,0.00598444,2506.0,2505.7,4.029]
[1748833526624,0.79785,2505.7,2505.6,1.3483]
[1748833526825,0.6794,2505.9,2505.6,1.3483]
[1748833527015,0.79785,2505.7,2505.6,5.3773]
[1748833527329,0.79788,2505.6,2505.5,0.50598444]
[1748833527524,2.83118,2505.6,2505.5,0.50598444]
[1748833529925,7.83118,2505.6,2505.5,0.5]
[1748833530128,0.79823,2504.5,2504.4,2.1961]
[1748833530327,21.8608,2504.5,2504.0,3.17187589]
[1748833530527,0.79836,2504.1,2504.0,3.17187589]
[1748833531230,0.00598444,2504.3,2504.0,3.17187589]
[1748833531432,0.00598444,2504.3,2504.1,1.2989]
[1748833531433,0.79835,2504.2,2504.1,1.2989]
[1748833531930,18.66698444,2504.3,2504.1,1.2989]
[1748833532123,0.00598444,2504.3,2504.1,1.2989]
[1748833532323,0.80429444,2504.3,2504.1,1.2989]
[1748833532525,0.00598444,2504.3,2504.1,1.2989]
[1748833532726,0.80428444,2504.3,2504.2,0.6694]
[1748833532930,0.00598444,2504.3,2504.2,0.6694]
[1748833533128,0.00598444,2504.3,2504.2,1.46773]
[1748833533329,0.00598444,2504.3,2504.2,0.6694]
[1748833533836,0.80428444,2504.3,2504.2,0.6694]
[1748833534229,0.00598444,2504.3,2504.2,0.6694]
[1748833534623,0.00598444,2504.3,2504.2,1.46773]
[1748833534829,0.00598444,2504.3,2504.2,6.46773]
[1748833535232,0.00598444,2504.3,2504.2,10.54673]
[1748833535427,3.2078,2504.5,2504.3,0.79988794]
[1748833535638,0.79827,2504.4,2504.3,0.00160794]
[1748833536122,1.2904,2504.4,2504.3,0.00160794]
[1748833536326,3.2078,2504.5,2504.3,0.00160794]
[1748833536533,0.79827,2504.4,2504.3,1.31810794]
[1748833536731,2.08867,2504.4,2504.3,0.00160794]
[1748833536933,4.00605,2504.5,2504.3,0.00160794]
[1748833537136,0.79827,2504.4,2504.3,1.31810794]
[1748833537538,3.2078,2504.5,2504.3,0.00160794]
[1748833537931,4.00604,2504.5,2504.3,1.32280794]
[1748833538131,3.2078,2504.5,2504.3,1.32280794]
[1748833538438,3.2078,2504.5,2504.4,0.79827]
[1748833538637,4.00604,2504.5,2504.3,1.32280794]
[1748833539035,0.79827,2504.4,2504.3,1.32280794]
[1748833539337,0.79827,2504.4,2504.3,0.00160794]
[1748833539533,2.17797,2504.4,2504.3,0.00160794]
[1748833539736,0.79827,2504.4,2504.3,0.00160794]
[1748833539935,4.64955,2504.5,2504.3,1.32280794]
[1748833540632,0.79827,2504.4,2504.3,1.32280794]
[1748833540931,0.79827,2504.4,2504.3,0.00160794]
[1748833541132,2.09307,2504.4,2504.3,0.00160794]
[1748833541537,2.78417,2504.4,2504.3,0.00160794]
[1748833542136,0.79862,2503.3,2502.4,4.316]
[1748833542333,4.00642,2503.3,2502.7,5.21171654]
[1748833542540,0.7987,2503.1,2502.7,2.05769]
[1748833542741,22.1878,2503.3,2502.7,1.2589]
[1748833542939,0.79873,2503.0,2502.7,2.0577]
[1748833543133,0.80468444,2503.1,2502.7,1.2589]
[1748833543333,0.00598444,2503.1,2502.8,2.05767]
[1748833543633,0.00598444,2503.1,2502.8,2.55765]
[1748833543834,0.00598444,2503.1,2502.8,1.7589]
[1748833544239,0.80469444,2503.1,2502.8,1.7589]
[1748833544540,0.00598444,2503.1,2502.8,6.0749]
[1748833544837,0.79873,2503.0,2502.8,1.7589]
[1748833545036,0.00598444,2503.1,2502.8,1.7589]
[1748833545237,0.80468444,2503.1,2502.8,1.7589]
[1748833545436,0.79873,2503.0,2502.8,0.5]
[1748833546035,0.80468444,2503.1,2502.8,0.5]
[1748833546346,19.78467444,2503.1,2502.9,1.3355]
[1748833546535,0.79871,2503.0,2502.9,1.3355]
[1748833547244,0.00598444,2503.1,2502.9,1.3355]
[1748833547441,0.80468444,2503.1,2502.9,1.3355]
[1748833547951,0.00598444,2503.1,2503.0,5.11571]
[1748833548147,4.0063,2503.7,2503.4,0.79857]
[1748833548344,4.0063,2503.7,2503.5,1.9494]
[1748833548539,3.2078,2503.7,2503.5,2.74794]
[1748833548741,4.0063,2503.7,2503.5,1.9494]
[1748833549147,0.7985,2503.7,2503.5,1.9494]
[1748833549341,0.00598444,2503.9,2503.7,0.79847]
[1748833549548,0.00598444,2503.9,2503.8,1.3682]
[1748833549847,0.00598444,2503.9,2503.8,2.16666]
[1748833550147,3.2078,2504.4,2503.8,10.6852]
[1748833550445,4.00609,2504.4,2504.1,0.79834]
[1748833550645,4.00609,2504.4,2504.2,2.16653]
[1748833550843,3.2078,2504.4,2504.3,2.1665]
[1748833551045,4.00607,2504.4,2504.3,1.3682]
[1748833551237,3.2078,2504.4,2504.3,1.3682]
[1748833551444,3.2078,2504.4,2504.1,4.32298444]
[1748833551653,0.79833,2504.3,2504.1,4.32298444]
[1748833551939,0.79833,2504.2,2504.1,4.32298444]
[1748833552239,0.79833,2504.2,2504.1,0.00598444]
[1748833554750,0.99793,2504.2,2504.1,0.00598444]
[1748833558048,1.66833,2504.2,2504.1,0.00598444]
[1748833558751,0.79855,2503.6,2503.5,4.317]
[1748833559448,0.79855,2503.5,2503.4,1.3333]
[1748833559850,1.2893,2503.8,2503.4,1.3333]
[1748833560244,0.79853,2503.6,2503.4,2.13187]
[1748833560548,0.79852,2503.6,2503.5,0.6917]
[1748833561347,18.985,2503.9,2503.5,1.49023]
[1748833561547,18.985,2503.9,2503.6,1.3333]
[1748833561844,0.79846,2503.9,2503.6,2.13179]
[1748833562046,0.79849,2503.7,2503.6,1.3333]
[1748833562253,0.79852,2503.6,2503.5,5.5087]
[1748833562849,0.79852,2503.6,2503.5,1.1917]
[1748833563651,0.79852,2503.6,2503.5,0.5]
[1748833564644,2.16832,2503.6,2503.5,0.5]
[1748833566347,0.79852,2503.6,2503.5,0.5]
[1748833568848,0.79862,2503.3,2503.2,9.99e-06]
[1748833569152,5.08446434,2503.3,2503.2,9.99e-06]
[1748833569951,9.49433475,2503.3,2502.2,2.198]
[1748833570155,3.2078,2502.7,2502.3,1.3575]
[1748833570351,23.62,2503.2,2502.6,0.79882]
[1748833570548,0.79873,2503.0,2502.7,2.83519]
[1748833570748,0.79874,2502.9,2502.8,1.3575]
[1748833571242,0.79874,2502.9,2502.8,5.6755]
[1748833571448,0.79872,2503.0,2502.8,5.6755]
[1748833572054,0.79873,2503.0,2502.8,5.6755]
[1748833572556,0.79871,2503.0,2502.8,5.6755]
[1748833572853,3.2078,2502.9,2502.7,5.5439]
[1748833573048,0.79878,2502.8,2502.7,1.1789]
[1748833573350,2.83758,2502.8,2502.7,0.5]
[1748833574645,0.79878,2502.8,2502.7,0.5]
[1748833574850,0.79878,2502.8,2502.7,1.8482]
[1748833575456,0.79878,2502.8,2502.7,4.866]
[1748833575854,0.79878,2502.8,2502.7,0.5]
[1748833576054,2.19038,2502.8,2502.7,0.5]
[1748833578251,7.19038,2502.8,2502.7,0.5]
[1748833578659,2.19038,2502.8,2502.7,0.5]
[1748833579256,7.19038,2502.8,2502.7,0.5]
[1748833579454,2.19038,2502.8,2502.7,0.5]
[1748833580953,7.19038,2502.8,2502.7,0.5]
[1748833581157,8.26577592,2502.8,2502.7,0.5]